Workbook

Sheet Birthday calculations
B1: Birthdays (among 60 people)
C3: Pr(born on different date than predecessors | predecessors all born on different dates)
D4: Pr(all up to this person born on distinct dates)
E5: Pr(by the time we reach this person, at least two with same birthdate)
B6: person | F6: the same, computed directly
B7: 1 | C7: 1 | D7: =PRODUCT($C$7:C7) -> 1 | E7: =1-D7 -> 0 | F7: 0
B8: 2 | C8: =365/366 -> 0.9972677596 | D8: =PRODUCT($C$7:C8) -> 0.9972677596 | E8: 0.002732240437 | F8: =1*F7+(B7/366)*(1-F7) -> 0.002732240437
B9: 3 | C9: =364/366 -> 0.9945355191 | D9: =PRODUCT($C$7:C9) -> 0.991818209 | E9: 0.008181791036 | F9: =1*F8+(B8/366)*(1-F8) -> 0.008181791036
B10: 4 | C10: =(366-B9)/366 -> 0.9918032787 | D10: =PRODUCT($C$7:C10) -> 0.9836885515 | E10: 0.01631144849 | F10: 0.01631144849
B11: 5 | C11: =(366-B10)/366 -> 0.9890710383 | D11: =PRODUCT($C$7:C11) -> 0.972937857 | E11: 0.02706214304 | F11: 0.02706214304
B12: 6 | C12: 0.9863387978 | D12: =PRODUCT($C$7:C12) -> 0.9596463562 | E12: 0.04035364382 | F12: 0.04035364382
B13: 7 | C13: 0.9836065574 | D13: =PRODUCT($C$7:C13) -> 0.9439144487 | E13: 0.0560855513 | F13: 0.0560855513
B14: 8 | C14: 0.9808743169 | D14: =PRODUCT($C$7:C14) -> 0.9258614401 | E14: 0.07413855988 | F14: 0.07413855988
B15: 9 | C15: 0.9781420765 | D15: =PRODUCT($C$7:C15) -> 0.9056240316 | E15: 0.0943759684 | F15: 0.0943759684
B16: 10 | C16: 0.9754098361 | D16: =PRODUCT($C$7:C16) -> 0.8833545882 | E16: 0.1166454118 | F16: 0.1166454118
B17: 11 | C17: 0.9726775956 | D17: =PRODUCT($C$7:C17) -> 0.8592192169 | E17: 0.1407807831 | F17: 0.1407807831
B18: 12 | C18: 0.9699453552 | D18: =PRODUCT($C$7:C18) -> 0.8333956886 | E18: 0.1666043114 | F18: 0.1666043114
B19: 13 | C19: 0.9672131148 | D19: =PRODUCT($C$7:C19) -> 0.8060712398 | E19: 0.1939287602 | F19: 0.1939287602
B20: 14 | C20: 0.9644808743 | D20: =PRODUCT($C$7:C20) -> 0.7774402941 | E20: 0.2225597059 | F20: 0.2225597059
B21: 15 | C21: 0.9617486339 | D21: =PRODUCT($C$7:C21) -> 0.7477021408 | E21: 0.2522978592 | F21: 0.2522978592
B22: 16 | C22: 0.9590163934 | D22: =PRODUCT($C$7:C22) -> 0.7170586104 | E22: 0.2829413896 | F22: 0.2829413896
B23: 17 | C23: 0.956284153 | D23: =PRODUCT($C$7:C23) -> 0.6857117859 | E23: 0.3142882141 | F23: 0.3142882141
B24: 18 | C24: 0.9535519126 | D24: =PRODUCT($C$7:C24) -> 0.6538617849 | E24: 0.3461382151 | F24: 0.3461382151
B25: 19 | C25: 0.9508196721 | D25: =PRODUCT($C$7:C25) -> 0.6217046479 | E25: 0.3782953521 | F25: 0.3782953521
B26: 20 | C26: 0.9480874317 | D26: =PRODUCT($C$7:C26) -> 0.5894303629 | E26: 0.4105696371 | F26: 0.4105696371
B27: 21 | C27: 0.9453551913 | D27: =PRODUCT($C$7:C27) -> 0.5572210535 | E27: 0.4427789465 | F27: 0.4427789465
B28: 22 | C28: 0.9426229508 | D28: =PRODUCT($C$7:C28) -> 0.5252493537 | E28: 0.4747506463 | F28: 0.4747506463
B29: 23 | C29: 0.9398907104 | D29: =PRODUCT($C$7:C29) -> 0.4936769882 | E29: 0.5063230118 | F29: 0.5063230118 | H29: =(365/366)^59 -> 0.850932213 | I29: Pr(a particular person has a birthdate all to him/herself)
B30: 24 | C30: 0.9371584699 | D30: =PRODUCT($C$7:C30) -> 0.4626535709 | E30: 0.5373464291 | F30: 0.5373464291 | H30: =showformula(H29) -> =(365/366)^59
B31: 25 | C31: 0.9344262295 | D31: =PRODUCT($C$7:C31) -> 0.4323156318 | E31: 0.5676843682 | F31: 0.5676843682
B32: 26 | C32: 0.9316939891 | D32: =PRODUCT($C$7:C32) -> 0.4027858755 | E32: 0.5972141245 | F32: 0.5972141245 | H32: =showformula(C46) -> =(366-B45)/366 | J32: =showformula(D46) -> =PRODUCT($C$7:C46) | M32: =showformula(E46) -> =1-D46 | N32: =showformula(F46) -> =1*F45+(B45/366)*(1-F45)
B33: 27 | C33: 0.9289617486 | D33: =PRODUCT($C$7:C33) -> 0.3741726713 | E33: 0.6258273287 | F33: 0.6258273287
B34: 28 | C34: 0.9262295082 | D34: =PRODUCT($C$7:C34) -> 0.3465697693 | E34: 0.6534302307 | F34: 0.6534302307 | H34: The final column is based on:
B35: 29 | C35: 0.9234972678 | D35: =PRODUCT($C$7:C35) -> 0.320056235 | E35: 0.679943765 | F35: 0.679943765
B36: 30 | C36: 0.9207650273 | D36: =PRODUCT($C$7:C36) -> 0.294696588 | E36: 0.705303412 | F36: 0.705303412 | H36: Pr(among k people, at least two share a birthdate)
B37: 31 | C37: 0.9180327869 | D37: =PRODUCT($C$7:C37) -> 0.27054113 | E37: 0.72945887 | F37: 0.72945887
B38: 32 | C38: 0.9153005464 | D38: =PRODUCT($C$7:C38) -> 0.2476264441 | E38: 0.7523735559 | F38: 0.7523735559 | H38: = Pr(among k, sharing occurs | sharing occurs amongst the first k-1)
B39: 33 | C39: 0.912568306 | D39: =PRODUCT($C$7:C39) -> 0.2259760446 | E39: =1-D39 -> 0.7740239554 | F39: 0.7740239554 | H39: ∙ Pr(sharing occurs amongst the first k-1)
B40: 34 | C40: 0.9098360656 | D40: =PRODUCT($C$7:C40) -> 0.2056011553 | E40: 0.7943988447 | F40: 0.7943988447 | H40: + Pr(among k, sharing occurs | sharing doesn't occur amongst the first k-1)
B41: 35 | C41: 0.9071038251 | D41: =PRODUCT($C$7:C41) -> 0.1865015945 | E41: 0.8134984055 | F41: 0.8134984055 | H41: ∙ Pr(sharing doesn't occur amongst the first k-1)
B42: 36 | C42: 0.9043715847 | D42: =PRODUCT($C$7:C42) -> 0.1686667425 | E42: 0.8313332575 | F42: 0.8313332575
B43: 37 | C43: 0.9016393443 | D43: =PRODUCT($C$7:C43) -> 0.1520765711 | E43: 0.8479234289 | F43: 0.8479234289 | H43: = 1 ∙ Pr(sharing occurs amongst the first k-1)
B44: 38 | C44: 0.8989071038 | D44: =PRODUCT($C$7:C44) -> 0.1367027101 | E44: 0.8632972899 | F44: 0.8632972899 | H44: + (k-1)/366 ∙ [1 - Pr(sharing occurs amongst the first k-1)]
B45: 39 | C45: 0.8961748634 | D45: =PRODUCT($C$7:C45) -> 0.1225095326 | E45: 0.8774904674 | F45: 0.8774904674
B46: 40 | C46: 0.893442623 | D46: =PRODUCT($C$7:C46) -> 0.1094552381 | E46: 0.8905447619 | F46: 0.8905447619
B47: 41 | C47: 0.8907103825 | D47: =PRODUCT($C$7:C47) -> 0.09749291701 | E47: 0.902507083 | F47: 0.902507083
B48: 42 | C48: 0.8879781421 | D48: =PRODUCT($C$7:C48) -> 0.08657157931 | E48: 0.9134284207 | F48: 0.9134284207
B49: 43 | C49: 0.8852459016 | D49: =PRODUCT($C$7:C49) -> 0.07663713578 | E49: 0.9233628642 | F49: 0.9233628642
B50: 44 | C50: 0.8825136612 | D50: =PRODUCT($C$7:C50) -> 0.06763331928 | E50: 0.9323666807 | F50: 0.9323666807
B51: 45 | C51: 0.8797814208 | D51: =PRODUCT($C$7:C51) -> 0.05950253773 | E51: 0.9404974623 | F51: 0.9404974623
B52: 46 | C52: 0.8770491803 | D52: =PRODUCT($C$7:C52) -> 0.05218665194 | E52: 0.9478133481 | F52: 0.9478133481
B53: 47 | C53: 0.8743169399 | D53: =PRODUCT($C$7:C53) -> 0.04562767383 | E53: 0.9543723262 | F53: 0.9543723262
B54: 48 | C54: 0.8715846995 | D54: =PRODUCT($C$7:C54) -> 0.03976838238 | E54: 0.9602316176 | F54: 0.9602316176
B55: 49 | C55: 0.868852459 | D55: =PRODUCT($C$7:C55) -> 0.03455285682 | E55: 0.9654471432 | F55: 0.9654471432
B56: 50 | C56: 0.8661202186 | D56: =PRODUCT($C$7:C56) -> 0.0299269279 | E56: 0.9700730721 | F56: 0.9700730721
B57: 51 | C57: 0.8633879781 | D57: =PRODUCT($C$7:C57) -> 0.02583854978 | E57: 0.9741614502 | F57: 0.9741614502
B58: 52 | C58: 0.8606557377 | D58: =PRODUCT($C$7:C58) -> 0.02223809612 | E58: 0.9777619039 | F58: 0.9777619039
B59: 53 | C59: 0.8579234973 | D59: =PRODUCT($C$7:C59) -> 0.01907858519 | E59: 0.9809214148 | F59: 0.9809214148
B60: 54 | C60: 0.8551912568 | D60: =PRODUCT($C$7:C60) -> 0.01631583925 | E60: 0.9836841607 | F60: 0.9836841607
B61: 55 | C61: 0.8524590164 | D61: =PRODUCT($C$7:C61) -> 0.01390858428 | E61: 0.9860914157 | F61: 0.9860914157
B62: 56 | C62: 0.849726776 | D62: =PRODUCT($C$7:C62) -> 0.01181849648 | E62: 0.9881815035 | F62: 0.9881815035
B63: 57 | C63: 0.8469945355 | D63: =PRODUCT($C$7:C63) -> 0.01001020193 | E63: 0.9899897981 | F63: 0.9899897981
B64: 58 | C64: 0.8442622951 | D64: =PRODUCT($C$7:C64) -> 0.00845123606 | E64: 0.9915487639 | F64: 0.9915487639
B65: 59 | C65: 0.8415300546 | D65: =PRODUCT($C$7:C65) -> 0.007111969143 | E65: 0.9928880309 | F65: 0.9928880309
B66: 60 | C66: 0.8387978142 | D66: =PRODUCT($C$7:C66) -> 0.005965504172 | E66: 0.9940344958 | F66: 0.9940344958

Sheet Birthday simulation
B1: Birthdays (among 60 people)
B3: person | C3: birthdate | D3: total with this birthdate
B4: 1 | C4: =DATE(2008,1,1)+RANDBETWEEN(0,365) -> 2008-04-14 | D4: =COUNTIF($C$4:$C$63,C4) -> 1
B5: 2 | C5: 2008-02-17 | D5: 1 | F5: all distinct dates? | G5: Simulation
B6: 3 | C6: 2008-03-25 | D6: 1 | G6: number of people born on k-person date
B7: 4 | C7: 2008-06-14 | D7: 1 | G7: 1 | H7: 2 | I7: 3 | J7: 4 | K7: 5 | L7: 6 | M7: more | N7: k
B8: 5 | C8: 2008-08-26 | D8: 1 | F8: =IF(G8=60,1,0) -> 1 | G8: =COUNTIF($D$4:$D$63,G7) -> 60 | H8: 0 | I8: 0 | J8: 0 | K8: 0 | L8: 0 | M8: =60-SUM(G8:L8) -> 0 | N8: people
B9: 6 | C9: 2008-11-07 | D9: 1
B10: 7 | C10: 2008-12-09 | D10: 1 | F10: =ADDRESS(ROW($F$8),COLUMN($F$8)) -> $F$8 | G10: =ADDRESS(ROW($G$8),COLUMN($G$8)) -> $G$8 | H10: =ADDRESS(ROW($H$8),COLUMN($H$8)) -> $H$8 | I10: =ADDRESS(ROW($I$8),COLUMN($I$8)) -> $I$8 | J10: =ADDRESS(ROW($J$8),COLUMN($J$8)) -> $J$8 | K10: =ADDRESS(ROW($K$8),COLUMN($K$8)) -> $K$8 | L10: =ADDRESS(ROW($L$8),COLUMN($L$8)) -> $L$8 | M10: =ADDRESS(ROW($M$8),COLUMN($M$8)) -> $M$8 | N10: monitored cell
B11: 8 | C11: 2008-07-25 | D11: 1 | F11: 0.00592 | G11: 51.02682 | H11: 8.28614 | I11: 0.65118 | J11: 0.03408 | K11: 0.0016 | L11: 0.00018 | M11: 0 | N11: mean
B12: 9 | C12: 2008-07-27 | D12: 1 | F12: 0.0767138348 | G12: 3.679811965 | H12: 3.54294361 | I12: 1.375253984 | J12: 0.3689443248 | K12: 0.08942885427 | L12: 0.03286302481 | M12: 0 | N12: sample standard deviation
B13: 10 | C13: 2008-09-13 | D13: 1 | F13: 0 | G13: 31 | H13: 0 | I13: 0 | J13: 0 | K13: 0 | L13: 0 | M13: 0 | N13: minimum
B14: 11 | C14: 2008-05-07 | D14: 1 | F14: 1 | G14: 60 | H14: 26 | I14: 9 | J14: 8 | K14: 5 | L14: 6 | M14: 0 | N14: maximum
B15: 12 | C15: 2008-03-19 | D15: 1 | F15: 100000 | G15: 100000 | H15: 100000 | I15: 100000 | J15: 100000 | K15: 100000 | L15: 100000 | M15: 100000 | N15: number of simulation runs
B16: 13 | C16: 2008-04-21 | D16: 1
B17: 14 | C17: 2008-05-30 | D17: 1
B18: 15 | C18: 2008-06-26 | D18: 1 | F18: Here, we see uses of the COUNTIF function: =COUNTIF(range, criterion). | M18: =showformula(G8) -> =COUNTIF($D$4:$D$63,G7)
B19: 16 | C19: 2008-04-02 | D19: 1 | F19: If the criterion is just a number, the function yields a count of the cells in the | M19: (count people born on k-person dates)
B20: 17 | C20: 2008-04-05 | D20: 1 | F20: range which take that value.
B21: 18 | C21: 2008-08-08 | D21: 1 | M21: =showformula(D4) -> =COUNTIF($C$4:$C$63,C4)
B22: 19 | C22: 2008-01-05 | D22: 1 | F22: COUNTIF can also take either of two types of text criteria. Such criteria | M22: (count people with the same birthday)
B23: 20 | C23: 2008-07-03 | D23: 1 | F23: must be in the form of a text string, contained in quotes.
B24: 21 | C24: 2008-10-12 | D24: 1
B25: 22 | C25: 2008-08-15 | D25: 1 | F25: If the criterion is simple text, COUNTIF counts the number of matching cells in
B26: 23 | C26: 2008-09-20 | D26: 1 | F26: the range. | H26: =COUNTIF(N10:N15,"*mean") -> 1 | I26: =showformula(H26) -> =COUNTIF(N10:N15,"*mean")
B27: 24 | C27: 2008-12-06 | D27: 1
B28: 25 | C28: 2008-04-03 | D28: 1 | F28: The character "*" can be used as a wildcard.
B29: 26 | C29: 2008-04-20 | D29: 1 | H29: =COUNTIF(N10:N15,"m*m") -> 2 | I29: =showformula(H29) -> =COUNTIF(N10:N15,"m*m") | L29: "minimum" and "maximum" both match
B30: 27 | C30: 2008-03-01 | D30: 1
B31: 28 | C31: 2008-04-18 | D31: 1 | F31: If the criterion is a numeric condition, COUNTIF counts the cells satisfying the condition.
B32: 29 | C32: 2008-12-25 | D32: 1 | H32: =COUNTIF(F14:M14,"<=10") -> 6 | I32: =showformula(H32) -> =COUNTIF(F14:M14,"<=10")
B33: 30 | C33: 2008-04-30 | D33: 1
B34: 31 | C34: 2008-07-17 | D34: 1
B35: 32 | C35: 2008-05-17 | D35: 1 | H35: order | I35: order
B36: 33 | C36: =DATE(2008,1,1)+RANDBETWEEN(0,365) -> 2008-04-23 | D36: =COUNTIF($C$4:$C$63,C36) -> 1 | H36: date | I36: cost
B37: 34 | C37: 2008-05-09 | D37: 1 | G37: Fred | H37: 2008-01-02 | I37: 120 | J37: =IF(AND(H37>=$K$44,H37<=$K$45),1,0) -> 1 | K37: =showformula(J37) -> =IF(AND(H37>=$K$44,H37<=$K$45),1,0)
B38: 35 | C38: 2008-12-07 | D38: 1 | G38: Mary | H38: 2008-03-12 | I38: 150 | J38: 1 | K38: =IF(AND(H38>=$K$44,H38<=$K$45),1,0)
B39: 36 | C39: 2008-05-03 | D39: 1 | G39: Bob | H39: 2007-09-01 | I39: 70 | J39: 0 | K39: =IF(AND(H39>=$K$44,H39<=$K$45),1,0)
B40: 37 | C40: 2008-02-20 | D40: 1 | G40: Ellen | H40: 2009-01-03 | I40: 200 | J40: 0 | K40: =IF(AND(H40>=$K$44,H40<=$K$45),1,0)
B41: 38 | C41: 2008-07-29 | D41: 1 | G41: Fred | H41: 2007-03-20 | I41: 180 | J41: 0 | K41: =IF(AND(H41>=$K$44,H41<=$K$45),1,0)
B42: 39 | C42: 2008-06-08 | D42: 1 | G42: George | H42: 2008-04-12 | I42: 100 | J42: 1 | K42: =IF(AND(H42>=$K$44,H42<=$K$45),1,0)
B43: 40 | C43: 2008-02-04 | D43: 1
B44: 41 | C44: 2008-05-06 | D44: 1 | J44: date | K44: =DATE(2008,1,1) -> 2008-01-01 | L44: =showformula(K44) -> =DATE(2008,1,1)
B45: 42 | C45: 2008-08-16 | D45: 1 | J45: range | K45: =DATE(2008,12,31) -> 2008-12-31 | L45: =showformula(K45) -> =DATE(2008,12,31)
B46: 43 | C46: 2008-05-20 | D46: 1
B47: 44 | C47: 2008-12-24 | D47: 1 | F47: There's a similar SUMIF function: =SUMIF(range, criterion, sum-range)
B48: 45 | C48: 2008-03-20 | D48: 1
B49: 46 | C49: 2008-12-29 | D49: 1 | G49: =SUMIF(G37:G42,"Fred",I37:I42) -> 300 | H49: =showformula(G49) -> =SUMIF(G37:G42,"Fred",I37:I42) | K49: orders placed by Fred
B50: 47 | C50: 2008-11-26 | D50: 1 | G50: =SUMIF(I37:I42,">=150",I37:I42) -> 530 | H50: =showformula(G50) -> =SUMIF(I37:I42,">=150",I37:I42) | K50: orders of at least $150
B51: 48 | C51: 2008-10-09 | D51: 1
B52: 49 | C52: 2008-12-16 | D52: 1 | F52: Both COUNTIF and SUMIF are limited to testing for a single criterion. If
B53: 50 | C53: 2008-03-11 | D53: 1 | F53: you need to test for multiple criteria (for example, orders placed in 2008),
B54: 51 | C54: 2008-01-17 | D54: 1 | F54: you have two approaches:
B55: 52 | C55: 2008-12-19 | D55: 1
B56: 53 | C56: 2008-05-11 | D56: 1 | F56: Add a new logical column to your data:
B57: 54 | C57: 2008-10-01 | D57: 1
B58: 55 | C58: 2008-10-29 | D58: 1 | G58: =SUM(J37:J42) -> 3 | H58: =showformula(G58) -> =SUM(J37:J42) | K58: number of orders in 2008
B59: 56 | C59: 2008-02-11 | D59: 1 | G59: =SUMPRODUCT(J37:J42,I37:I42) -> 370 | H59: =showformula(G59) -> =SUMPRODUCT(J37:J42,I37:I42) | K59: total cost of orders in 2008
B60: 57 | C60: 2008-12-30 | D60: 1
B61: 58 | C61: 2008-10-15 | D61: 1 | F61: Use array formulae:
B62: 59 | C62: 2008-05-29 | D62: 1
B63: 60 | C63: 2008-02-19 | D63: 1 | G63: =SUM((H37:H42>=K44)*(H37:H42<=K45)) -> 3 | H63: =showformula(G63) -> =SUM((H37:H42>=K44)*(H37:H42<=K45)) | L63: both entered by
G64: =SUM((H37:H42>=K44)*(H37:H42<=K45)*I37:I42) -> 370 | H64: =showformula(G64) -> =SUM((H37:H42>=K44)*(H37:H42<=K45)*I37:I42) | L64: typing Ctrl+Shift+Enter

Sheet Red bag, blue bag
B1: Updating Beliefs
B3: I walk into the room carrying two small bags. I open both bags, and let you examine the
B4: contents. You see that one of the bags (call it "Bag R") contains 70 red marbles and 30
B5: blue marbles. The other (Bag B) contains 70 blue marbles and 30 red.
B7: I reseal the bags, and quickly slide them back and forth past each other on the table.
B8: (The old "shell" game - you completely lose track of which bag is which.) I then throw one
B9: of the bags out the door, leaving the other in front of you on the table.
B11: At this point, you figure it's 50:50 whether Bag R or Bag B is sitting on the table.
B13: I loosen the tie at the top of the bag, reach in, pull out a dozen marbles (chosen from the
B14: bag at random), and reseal the bag again. We look at the marbles, and see that eight are
B15: red, and four are blue.
B17: What are the odds that this bag is bag R?
B19: For instance -
B21: even odds: | C21: Betting $1 that it's Bag R against $1 that it's Bag B, you'd be
C22: equally happy to be on either side of the bet.
B23: 2-to-1: | C23: Betting $2 that it's Bag R against $1 that it's Bag B, you'd be
C24: equally happy to be on either side of the bet.
B25: 3-to-1: | C25: Betting $3 that it's Bag R against $1 that it's Bag B, you'd be
C26: equally happy to be on either side of the bet.
B27: 5-to-1: | C27: Betting $5 that it's Bag R against $1 that it's Bag B, you'd be
C28: equally happy to be on either side of the bet.
B29: 10-to-1: | C29: Betting $10 that it's Bag R against $1 that it's Bag B, you'd be
C30: equally happy to be on either side of the bet.
B31: 25-to-1: | C31: Betting $20 that it's Bag R against $1 that it's Bag B, you'd be
C32: equally happy to be on either side of the bet.
B33: 50-to-1: | C33: Betting $50 that it's Bag R against $1 that it's Bag B, you'd be
C34: equally happy to be on either side of the bet.
B37: 70 | C37: red balls in bag R
B38: 30 | C38: blue balls in bag R
B40: 30 | C40: red balls in bag B
B41: 70 | C41: blue balls in bag B
B43: 0.5 | C43: initial probability of bag R being selected
B44: =1-B43 -> 0.5 | C44: initial probability of bag B being selected
B46: 12 | C46: sample size
B49: red balls in sample | C49: Pr(sample|bag R) | D49: Pr(sample|bag B) | E49: Pr(bag R|sample)
B50: 0 | C50: =(COMBIN(redsR,B50)*COMBIN(bluesR,sample-B50)/COMBIN(redsR+bluesR,sample)) -> 8.234148098e-08 | D50: =(COMBIN(redsB,B50)*COMBIN(bluesB,sample-B50)/COMBIN(redsB+bluesB,sample)) -> 0.01012821863 | E50: =(C50*priorR)/((C50*priorR)+(D50*priorB)) -> 8.129841443e-06
B51: 1 | C51: 3.640360212e-06 | D51: 0.06179930011 | E51: 5.890270243e-05
B52: 2 | C52: 6.907583502e-05 | D52: 0.1642831395 | E52: 0.0004202914752
B53: 3 | C53: 0.0007455804415 | D53: 0.2513621806 | E53: 0.002957387898
B54: 4 | C54: 0.005108920525 | D54: 0.2462943947 | E54: 0.02032161159
B55: 5 | C55: 0.02345660902 | D55: 0.1626324892 | E55: 0.1260504202
B56: 6 | C56: 0.07411636878 | D56: 0.07411636878 | E56: 0.5
B57: 7 | C57: 0.1626324892 | D57: 0.02345660902 | E57: 0.8739495798
B58: 8 | C58: 0.2462943947 | D58: 0.005108920525 | E58: 0.9796783884
B59: 9 | C59: 0.2513621806 | D59: 0.0007455804415 | E59: 0.9970426121
B60: 10 | C60: 0.1642831395 | D60: 6.907583502e-05 | E60: 0.9995797085
B61: 11 | C61: 0.06179930011 | D61: 3.640360212e-06 | E61: 0.9999410973
B62: 12 | C62: 0.01012821863 | D62: 8.234148098e-08 | E62: 0.9999918702

Sheet Let's make a deal!
B1: Let's Make a Deal
B3: Perhaps you remember an old TV game show called "Let's Make a Deal," hosted by
B4: Monty Hall. Each show ended the same way: One member of the studio audience was
B5: given a shot at a "fabulous prize" (a new car, exotic cruise, or the like).
B7: On the stage were three closed curtains. One concealed the prize; the other two
B8: concealed garbage (joke prizes, such as "a pig in a poke," not worth very much money).
B10: The contestant selected a curtain, and could have whatever it concealed. But, before
B11: the curtain was opened, Monty Hall would step in and complicate matters:
B13: No matter which curtain was selected (the prize or garbage), there was always at least
B14: one of the other two which concealed garbage. The stage crew would signal to Monty,
B15: and he'd open an unselected garbage-hiding curtain.
B17: Everyone would see the joke prize, and laugh. Then, the moment of truth arrived.
B18: Monty Hall would turn to the contestant, and point at the remaining two closed curtains.
B20: "One of these hides the prize; the other hides garbage. You've already selected this
B21: one. (He points.) "You can have what it conceals, or, if you're having second thoughts,
B22: you can switch your choice, and have what the other conceals instead."
B24: What would you do? Stay with your original choice, or switch? Or does it not really
B25: matter?
B28: Say you start by choosing door A.
B29: There are three possibilities: A hides the prize, or B does, or C does.
B30: Each possibility has probability 1/3.
B32: Now, Monty has two choices in the first case: open B, or open C.
B33: In the other cases, he has only one choice: open the unchosen, nonprize curtain.
B35: So the progression of events, with associated probabilities, is:
C37: prize | D37: opened | E37: probability
C38: A | D38: B | E38: =1/6 -> 0.1666666667 | F38: x
C39: A | D39: C | E39: =1/6 -> 0.1666666667
C40: B | D40: C | E40: =1/3 -> 0.3333333333
C41: C | D41: B | E41: =1/3 -> 0.3333333333 | F41: x
B43: Given, for example, that he opens curtain B, then the probability that the
B44: prize is behind curtain A is only (1/6)/(1/6+1/3) = 1/3 = 33.33%
B46: Your chances are twice as good from switching as they are from sticking!
